bitfinex/quotes_ETHUSD_20240630
["timestamp","ask_amount","ask_price","bid_price","bid_amount"]
[1719752507445,3.0,3392.5,3391.7,2.4534]
[1719752507650,2.4753,3392.6,3391.7,2.4534]
[1719752508985,2.375,3392.8,3391.8,2.51236113]
[1719752509190,4.83,3392.9,3391.9,0.05895806]
[1719752509351,4.83,3392.9,3392.0,2.4534]
[1719752510549,3.0,3392.8,3392.0,2.4534]
[1719752512973,2.375,3392.7,3392.0,2.4534]
[1719752514286,2.375,3392.7,3392.0,2.6014]
[1719752514649,2.375,3392.7,3392.0,0.148]
[1719752518407,2.375,3392.7,3392.0,2.4168]
[1719752520200,3.0,3392.8,3392.0,2.4168]
[1719752522776,2.2755,3392.7,3392.0,0.148]
[1719752523495,2.64383597,3392.7,3392.0,0.148]
[1719752523690,2.64383597,3392.6,3392.0,0.148]
[1719752523897,2.2755,3392.4,3392.0,0.148]
[1719752524135,0.36833597,3392.3,3392.0,0.148]
[1719752524352,2.2755,3392.2,3392.0,0.148]
[1719752524492,0.36833597,3392.1,3392.0,0.148]
[1719752524688,2.64383597,3392.1,3392.0,0.148]
[1719752527331,2.2755,3392.1,3392.0,0.148]
[1719752528030,3.0,3392.3,3392.0,0.148]
[1719752531100,3.0,3392.4,3392.0,0.148]
[1719752532533,2.82213597,3392.3,3392.0,0.148]
[1719752538847,3.0,3392.2,3392.0,0.148]
[1719752541110,2.371,3392.1,3392.0,0.148]
[1719752542438,2.73933597,3392.1,3392.0,0.148]
[1719752542746,5.73933597,3392.1,3392.0,0.148]
[1719752545840,3.0,3392.1,3392.0,0.148]
[1719752546047,5.4581,3392.5,3392.0,0.148]
[1719752546346,2.4581,3392.3,3392.0,0.148]
[1719752546542,5.4581,3392.3,3392.0,0.148]
[1719752547830,2.4581,3392.3,3392.0,0.148]
[1719752551762,2.4581,3392.1,3392.0,0.148]
[1719752551933,6.0081,3392.1,3392.0,0.148]
[1719752556922,3.0,3392.1,3392.0,0.148]
[1719752557329,2.4581,3392.2,3392.0,0.148]
[1719752559890,3.0,3392.5,3392.0,0.148]
[1719752560084,4.42828787,3392.6,3392.0,0.148]
[1719752560377,2.4581,3392.5,3392.0,0.148]
[1719752560829,5.4581,3392.5,3392.0,0.148]
[1719752561233,2.4581,3392.5,3392.0,0.148]
[1719752561760,0.36150315,3392.5,3392.0,0.148]
[1719752562065,3.26718313,3392.6,3392.0,0.148]
[1719752562443,3.0,3392.6,3392.0,0.148]
[1719752564158,3.36150315,3392.6,3392.0,0.148]
[1719752564679,0.36150315,3392.5,3392.0,0.148]
[1719752567768,2.2523,3392.3,3392.0,0.148]
[1719752567971,5.2523,3392.3,3392.0,0.148]
[1719752570065,0.36150315,3392.2,3392.0,0.148]
[1719752570279,3.36150315,3392.2,3392.0,0.148]
[1719752578507,0.55,3392.1,3392.0,0.148]
[1719752578705,0.91150315,3392.1,3392.0,0.148]
[1719752580303,3.0,3392.2,3392.0,0.148]
[1719752580504,2.2523,3392.4,3392.0,0.148]
[1719752580505,3.0,3392.1,3392.0,0.148]
[1719752580802,2.2523,3392.4,3392.0,0.148]
[1719752581006,2.61380315,3392.4,3392.0,0.148]
[1719752581211,3.0,3392.3,3392.0,0.148]
[1719752583716,0.36150315,3392.4,3392.0,0.148]
[1719752585511,0.36150315,3392.4,3392.0,2.4779]
[1719752590290,4.83,3392.7,3392.0,2.4779]
[1719752592426,3.0,3392.6,3392.0,2.4779]
[1719752604307,3.36150315,3392.6,3392.0,2.4779]
[1719752606621,3.36150315,3392.6,3392.0,0.148]
[1719752607139,0.36150315,3392.5,3392.0,0.148]
[1719752607757,2.64170315,3392.5,3392.0,0.148]
[1719752608038,3.0,3392.4,3392.0,0.148]
[1719752608399,0.36150315,3392.4,3392.0,0.148]
[1719752608599,3.36150315,3392.4,3392.0,0.148]
[1719752615215,0.36150315,3392.3,3392.0,0.148]
[1719752617547,3.47550315,3392.3,3392.0,0.148]
[1719752617750,2.2802,3392.1,3392.0,0.148]
[1719752617951,3.19170315,3392.1,3392.0,0.148]
[1719752618280,6.19170315,3392.1,3392.0,0.148]
[1719752622065,3.91150315,3392.1,3392.0,0.148]
[1719752627340,9.41980315,3392.1,3392.0,0.148]
[1719752627655,10.58060832,3392.1,3392.0,0.148]
[1719752627819,10.84765452,3392.1,3392.0,0.148]
[1719752628019,10.8476675,3392.1,3392.0,0.148]
[1719752630722,10.84747985,3392.1,3392.0,0.148]
[1719752630952,10.84748017,3392.1,3392.0,0.148]
[1719752633224,10.96173911,3392.1,3392.0,0.148]
[1719752633933,10.96176103,3392.1,3392.0,0.148]
[1719752635060,7.84776103,3392.1,3392.0,0.148]
[1719752635946,7.46645589,3392.1,3392.0,0.148]
[1719752636747,5.07215589,3392.1,3392.0,0.148]
[1719752637287,3.91150315,3392.1,3392.0,0.148]
[1719752641168,3.36150315,3392.1,3392.0,0.148]
[1719752641670,8.86980315,3392.1,3392.0,0.148]
[1719752641871,3.91150315,3392.1,3392.0,0.148]
[1719752644671,3.36150315,3392.1,3392.0,0.148]
[1719752648873,5.84990315,3392.1,3392.0,0.148]
[1719752650955,6.39990315,3392.1,3392.0,0.148]
[1719752651546,3.91150315,3392.1,3392.0,0.148]
[1719752653500,3.0,3392.1,3392.0,0.148]
[1719752654201,3.36150315,3392.1,3392.0,0.148]
[1719752656571,3.91150315,3392.1,3392.0,0.148]
[1719752657271,3.36150315,3392.1,3392.0,0.148]
[1719752657483,3.0,3392.1,3392.0,0.148]
[1719752661713,3.36150315,3392.1,3392.0,0.148]
[1719752691938,4.83,3392.2,3392.0,2.6229]
[1719752692356,4.83,3392.2,3392.0,2.88519]
[1719752693357,3.0,3392.1,3392.0,2.6229]
[1719752704754,3.36150315,3392.1,3392.0,0.148]
[1719752706253,5.61700315,3392.1,3392.0,0.148]
[1719752707455,6.16700315,3392.1,3392.0,0.148]
[1719752711882,6.16700315,3392.1,3392.0,0.12]
[1719752712196,6.50931856,3392.1,3392.0,0.12]
[1719752712772,6.89066417,3392.1,3392.0,0.12]
[1719752713160,2.2555,3392.0,3390.8,2.4654]
[1719752713367,0.91150315,3391.9,3390.8,2.4654]
[1719752713563,2.2555,3391.8,3390.8,2.4654]
[1719752713762,5.2555,3391.8,3390.8,2.4654]
[1719752714074,5.61700315,3391.8,3390.8,2.4654]
[1719752714611,2.2555,3391.6,3390.8,2.4654]
[1719752714898,0.36150315,3391.5,3389.8,2.4654]
[1719752715088,8.19150315,3391.5,3389.8,2.4654]
[1719752718703,8.19150315,3391.5,3390.0,2.4654]
[1719752718900,8.19150315,3391.5,3390.1,2.52438738]
[1719752719106,8.19150315,3391.5,3390.3,2.4654]
[1719752719293,8.19150315,3391.5,3390.5,2.4654]
[1719752725698,2.2555,3391.4,3390.5,2.4654]
[1719752725898,5.2555,3391.4,3390.5,2.4654]
[1719752731292,3.0,3391.4,3390.6,2.32378127]
[1719752731521,3.0,3391.4,3390.7,0.23237813]
[1719752732505,4.83,3391.5,3390.9,2.2648]
[1719752732716,4.83,3391.8,3391.1,2.2648]
[1719752732909,4.83,3391.8,3391.2,0.29134784]
[1719752733133,7.1208,3392.1,3391.3,2.2648]
[1719752734014,7.1208,3392.1,3391.6,0.08845382]
[1719752734423,7.48230315,3392.1,3391.6,0.08845382]
[1719752735643,3.0,3392.0,3391.6,0.08845382]
[1719752740332,3.36150315,3392.0,3391.6,0.08845382]
[1719752742160,2.2908,3391.9,3391.6,0.08845382]
[1719752742475,2.65230315,3391.9,3391.6,0.08845382]
[1719752742764,3.0,3391.8,3391.6,0.08845382]
[1719752743360,3.36150315,3391.8,3391.6,0.08845382]
[1719752753959,2.2923,3391.7,3391.6,0.08845382]
[1719752754163,2.65380315,3391.7,3391.6,0.08845382]
[1719752754361,3.36150315,3391.7,3391.6,0.08845382]
[1719752754573,5.65380315,3391.7,3391.6,0.08845382]
[1719752767437,3.36150315,3391.7,3391.6,0.08845382]
[1719752767632,3.0,3391.9,3391.6,0.08845382]
[1719752769529,3.36150315,3391.9,3391.6,0.08845382]
[1719752769914,3.0,3391.8,3391.6,0.08845382]
[1719752770228,0.36150315,3391.9,3391.6,0.08845382]
[1719752783816,0.36150315,3391.9,3391.6,2.49465382]
[1719752784046,3.0,3392.2,3391.6,2.49465382]
[1719752784219,0.36150315,3392.1,3391.6,2.49465382]
[1719752786161,0.36150315,3392.1,3391.6,0.08845382]
[1719752786462,2.3364,3392.0,3391.6,0.08845382]
[1719752786661,5.69790315,3392.0,3391.6,0.08845382]
[1719752786865,2.69790315,3392.0,3391.6,0.08845382]
[1719752787051,3.0,3391.9,3391.6,0.08845382]
[1719752795435,3.36150315,3391.9,3391.6,0.08845382]
[1719752796645,0.36150315,3391.8,3391.6,0.08845382]
[1719752796850,2.3364,3391.7,3391.6,0.08845382]
[1719752797184,5.69790315,3391.7,3391.6,0.08845382]
[1719752797355,2.69790315,3391.7,3391.6,0.08845382]
[1719752797576,5.69790315,3391.7,3391.6,0.08845382]
[1719752799111,3.36150315,3391.7,3391.6,0.08845382]
[1719752799283,0.36150315,3391.7,3391.6,0.08845382]
[1719752800371,3.36150315,3391.7,3391.6,0.08845382]
[1719752815699,3.0,3392.0,3391.6,0.08845382]
[1719752816018,3.0,3392.1,3391.6,0.08845382]
[1719752816216,0.36150315,3392.1,3391.6,0.08845382]
[1719752818907,0.36150315,3392.1,3391.7,2.2977]
[1719752819228,4.83,3392.3,3391.9,2.2977]
[1719752819439,0.36427903,3392.4,3391.9,2.2977]
[1719752819610,1.24498348,3392.4,3391.9,2.2977]
[1719752819800,1.60648663,3392.4,3391.9,2.2977]
[1719752819994,0.36150315,3392.4,3391.9,2.2977]
[1719752822238,0.36150315,3392.4,3391.9,2.53631538]
[1719752838155,0.36150315,3392.5,3391.9,2.53631538]
[1719752841287,0.36150315,3392.5,3391.9,2.2977]
[1719752844386,0.36150315,3392.5,3391.7,2.2749]
[1719752851776,2.3627,3392.4,3391.7,2.2749]
[1719752852001,5.72420315,3392.4,3391.7,2.2749]
[1719752852759,5.72420315,3392.4,3391.6,0.08845382]
[1719752853214,5.72420315,3392.4,3391.6,2.36215382]
[1719752862100,5.72420315,3392.4,3391.6,0.08845382]
[1719752862403,5.72420315,3392.4,3391.7,2.2737]
[1719752862404,0.36150315,3392.3,3391.7,2.2737]
[1719752862568,3.36150315,3392.3,3391.7,2.50991538]
[1719752868367,3.36150315,3392.3,3391.7,0.23621538]
[1719752868567,3.36150315,3392.3,3391.6,0.08845382]
[1719752875721,3.36150315,3392.3,3391.6,0.14741773]
[1719752876280,3.36150315,3392.3,3391.6,0.08845382]
[1719752879049,3.0,3392.3,3391.6,0.08845382]
[1719752879183,2.3627,3392.4,3391.6,0.08845382]
[1719752879511,2.3627,3392.4,3391.7,0.24122538]
[1719752880552,5.3627,3392.4,3391.7,0.24122538]
[1719752882323,5.72420315,3392.4,3391.7,0.24122538]
[1719752882511,3.0,3392.3,3391.7,0.24122538]
[1719752890207,3.0,3392.3,3391.6,0.08845382]
[1719752909748,0.36150315,3392.4,3391.7,2.2657]
[1719752911549,0.57533542,3392.4,3391.7,2.2657]
[1719752912167,0.57533552,3392.4,3391.7,2.2657]
[1719752912540,0.36150315,3392.4,3391.7,2.2657]
[1719752914137,3.0,3392.6,3391.7,2.2657]
[1719752914335,0.57533421,3392.5,3391.7,2.2657]
[1719752915766,0.57533421,3392.5,3391.8,0.05895894]
[1719752915952,0.57533421,3392.5,3391.8,2.30925894]
[1719752916160,0.21383106,3392.5,3391.8,2.30925894]
[1719752917974,3.0,3392.6,3391.8,2.30925894]
[1719752922053,3.0,3392.6,3391.8,2.2503]
[1719752922482,3.0,3392.6,3392.0,2.2503]
[1719752922772,3.0,3392.6,3392.1,0.23092529]
[1719752923072,0.21390506,3392.5,3392.1,0.23092529]
[1719752923278,0.21390506,3392.5,3392.1,0.28987821]
[1719752923439,0.21390506,3392.5,3392.2,2.2503]
[1719752925276,0.21390736,3392.5,3392.2,2.2503]
[1719752925676,0.21390734,3392.5,3392.2,2.2503]
[1719752928541,0.21390668,3392.5,3392.2,2.2503]
[1719752929002,0.21390665,3392.5,3392.2,2.2503]
[1719752931483,0.21390665,3392.5,3391.7,2.4636]
[1719752931644,2.58600665,3392.5,3391.7,2.4636]
[1719752931994,3.21390665,3392.4,3391.7,2.4636]
[1719752932167,0.21390139,3392.3,3391.7,2.4636]
[1719752932381,0.21390139,3392.3,3391.7,2.71880538]
[1719752935275,3.0,3392.4,3391.7,2.71880538]
[1719752935472,0.21395171,3392.3,3391.7,2.71880538]
[1719752935795,3.0,3392.4,3391.7,2.71880538]
[1719752936108,0.21395189,3392.3,3391.7,2.71880538]
[1719752936303,3.21395189,3392.4,3391.8,0.28072592]
[1719752936507,0.21395189,3392.3,3391.8,0.28072592]
[1719752936786,3.21395189,3392.4,3391.8,0.28072592]
[1719752936957,0.21395189,3392.3,3391.8,0.28072592]
[1719752937161,3.21395189,3392.4,3391.8,0.28072592]
[1719752937485,0.21395189,3392.3,3391.9,0.28327797]
[1719752937689,3.21395189,3392.4,3391.9,0.28327797]
[1719752937890,0.21395189,3392.3,3391.7,2.4636]
[1719752938189,3.21395189,3392.4,3391.7,2.4636]
[1719752938345,0.21395189,3392.3,3391.8,0.25520538]
[1719752938550,3.0,3392.4,3391.8,0.25520538]
[1719752938750,2.3721,3392.5,3391.8,0.25520538]
[1719752938751,0.21394895,3392.3,3391.8,0.25520538]
[1719752938982,3.21394895,3392.4,3391.8,0.25520538]
[1719752939159,0.21394895,3392.3,3391.8,0.25520538]
[1719752940361,0.21394895,3392.3,3391.9,0.28072592]
[1719752941086,3.0,3392.4,3391.9,0.28072592]
[1719752941280,0.21395191,3392.3,3391.7,2.4636]
[1719752941593,3.21395191,3392.4,3391.7,2.4636]
[1719752941888,0.21395191,3392.3,3391.7,2.71880538]
[1719752943354,2.3721,3392.2,3391.6,0.08845382]
[1719752943554,0.21395191,3392.1,3391.6,0.08845382]
[1719752944176,2.3721,3392.2,3391.6,0.08845382]
[1719752944411,0.21394449,3392.1,3391.6,0.08845382]
[1719752945187,0.21394449,3392.1,3391.7,2.52256301]
[1719752945394,0.21394449,3392.3,3391.7,2.78366469]
[1719752945683,0.21394449,3392.5,3391.7,2.52256301]
[1719752946266,0.21394449,3392.5,3391.7,2.4636]
[1719752947352,3.0,3392.6,3391.7,2.71880538]
[1719752947554,0.21395327,3392.5,3391.7,2.71880538]
[1719752947876,3.0,3392.6,3391.7,2.71880538]
[1719752948077,0.21395323,3392.5,3391.7,2.71880538]
[1719752950693,0.21395899,3392.5,3391.7,2.71880538]
[1719752950890,0.2139589,3392.5,3391.8,0.28072592]
[1719752953671,3.0,3392.6,3391.8,0.28072592]
[1719752953903,0.21396694,3392.5,3391.8,0.28072592]
[1719752954764,0.21396694,3392.5,3391.8,0.33968641]
[1719752954965,0.21396694,3392.5,3391.9,2.4754]
[1719752956966,0.21394963,3392.5,3391.9,2.4754]
[1719752957713,0.21394963,3392.5,3392.0,0.05895688]
[1719752957901,0.21394963,3392.5,3391.9,2.4754]
[1719752958096,0.21394963,3392.5,3392.0,0.24754]
[1719752960406,0.21396793,3392.5,3392.0,0.30649651]
[1719752962105,0.21396793,3392.5,3392.0,0.24754]
[1719752963611,0.21399808,3392.5,3392.0,0.24754]
[1719752963914,0.21399808,3392.5,3392.1,0.272294]
[1719752964279,0.21399808,3392.5,3391.9,2.4754]
[1719752966703,3.0,3392.6,3391.9,2.4754]
[1719752967030,0.21401293,3392.5,3391.9,2.4754]
[1719752970134,3.0,3392.6,3391.9,2.4754]
[1719752970429,0.21401767,3392.5,3391.9,2.4754]
[1719752970577,0.21401767,3392.5,3391.9,2.73178538]
[1719752973298,3.0,3392.6,3391.9,2.73178538]
[1719752973504,0.21402322,3392.5,3391.9,2.73178538]
[1719752974025,0.21411822,3392.5,3391.9,2.73178538]
[1719752976484,3.0,3392.6,3391.9,2.73178538]
[1719752976816,0.21415126,3392.5,3391.9,2.73178538]
[1719752978987,3.0,3392.6,3391.9,2.73178538]
[1719752979190,0.21413086,3392.5,3391.9,2.73178538]
[1719752980045,0.21411434,3392.5,3391.9,2.73178538]
[1719752983122,0.21411434,3392.5,3392.0,0.05895412]
[1719752983339,0.21411434,3392.5,3392.0,0.33213266]
[1719752983340,0.2140792,3392.5,3392.0,0.33213266]
[1719752986515,3.0,3392.6,3392.0,0.33213266]
[1719752986810,0.21407236,3392.5,3391.9,2.4754]
[1719752987029,0.21407497,3392.5,3391.9,2.4754]
[1719752988569,0.21407497,3392.5,3392.0,0.05895434]
[1719752988858,0.21407497,3392.5,3392.1,2.4775]
[1719752989732,0.21407786,3392.5,3392.1,2.4775]
[1719752993033,0.21407963,3392.5,3392.1,2.4775]
[1719752995770,0.21407963,3392.5,3392.2,0.05895459]
[1719752996066,0.21407963,3392.5,3392.1,2.72525]
[1719752996236,0.21408446,3392.5,3392.1,2.72525]
[1719752999345,3.0,3392.6,3392.1,2.72525]
[1719752999547,0.21408273,3392.5,3392.1,2.72525]
[1719752999866,3.0,3392.6,3392.2,0.272525]
[1719753000032,0.21408153,3392.5,3392.2,0.272525]
[1719753001837,0.21407932,3392.5,3392.2,0.272525]
[1719753002039,0.21407932,3392.5,3392.4,2.4775]
[1719753002238,0.21407932,3392.6,3392.4,2.4775]
[1719753002554,4.66701432,3393.0,3392.4,2.4775]
[1719753002756,0.2140971,3392.9,3392.4,2.4775]
[1719753002968,0.2140971,3392.9,3392.5,0.24775]
[1719753005067,0.21411056,3392.9,3392.5,0.24775]
[1719753006674,0.21411056,3392.9,3392.6,0.05894592]
[1719753007679,0.21411056,3392.9,3392.5,0.24775]
[1719753008251,0.21412288,3392.9,3392.5,0.24775]
[1719753008560,0.21412288,3392.9,3392.6,0.272525]
[1719753009545,3.0,3393.0,3392.7,2.4383]
[1719753009956,4.83,3393.1,3392.7,2.4383]
[1719753010182,0.21412644,3393.0,3392.7,2.4383]
[1719753011347,4.83,3393.1,3392.7,2.4383]
[1719753011553,0.2141264,3393.0,3392.7,2.4383]
[1719753012093,0.21412387,3393.0,3392.7,2.4383]
[1719753013480,4.83,3393.1,3392.7,2.4383]
[1719753013982,0.21412665,3393.0,3392.7,2.4383]
[1719753014182,0.21412665,3393.3,3392.7,2.4383]
[1719753014556,0.21412533,3393.3,3392.7,2.4383]
[1719753014761,0.21412532,3393.3,3392.7,2.4383]
[1719753017161,0.36150315,3393.2,3392.7,2.4383]
[1719753019387,2.3733,3393.1,3391.7,2.4383]
[1719753019554,5.40568237,3393.0,3391.7,2.4383]
[1719753019754,0.21417922,3392.9,3391.7,2.4383]
[1719753019950,0.21417922,3392.9,3391.9,2.4383]
[1719753021047,0.21414263,3392.9,3391.9,2.4383]
[1719753023393,0.2141527,3392.9,3391.9,2.4383]
[1719753023562,5.19150315,3393.0,3391.9,2.4383]
[1719753023764,0.21414645,3392.9,3391.9,2.4383]
[1719753024098,0.21414645,3392.9,3392.1,2.4383]
[1719753024291,0.21415514,3392.9,3392.1,2.4383]
[1719753024692,0.21416162,3392.9,3392.1,2.4383]
[1719753025070,5.19150315,3393.0,3392.1,2.4383]
[1719753025301,0.21415902,3392.9,3392.1,2.4383]
[1719753025506,0.21415902,3392.9,3392.2,2.68213]
[1719753025707,0.21415902,3392.9,3392.2,2.4383]
[1719753026575,4.83,3393.0,3392.2,2.4383]
[1719753026771,4.83,3393.0,3392.3,2.5450488]
[1719753026976,4.83,3393.0,3392.5,2.4861]
[1719753027177,8.19150315,3393.4,3392.6,0.05894467]
[1719753027391,0.21414119,3393.3,3392.6,0.05894467]
[1719753029877,0.21414119,3393.3,3392.6,0.33889962]
[1719753030078,0.21414119,3393.3,3392.7,2.4861]
[1719753030307,0.21414119,3393.3,3392.8,0.05893849]
[1719753030491,4.83,3393.4,3392.9,2.4861]
[1719753030788,4.83,3393.4,3393.0,0.05893855]
[1719753031901,2.3964,3393.7,3393.0,0.05893855]
[1719753032083,0.21414979,3393.6,3393.0,0.05893855]
[1719753032303,3.21414979,3393.6,3393.0,0.31344241]
[1719753032503,3.0,3393.5,3393.0,0.31344241]
[1719753032829,0.36150315,3393.7,3393.0,0.31344241]
[1719753033028,0.57564747,3393.7,3393.0,0.31344241]
[1719753033725,0.36150315,3393.7,3393.0,0.31344241]
[1719753034008,0.57565975,3393.7,3393.0,0.31344241]
[1719753034831,0.57565975,3393.7,3393.1,0.27995424]
[1719753034985,0.57565975,3393.7,3393.2,2.4861]
[1719753036811,0.36150315,3393.7,3393.2,2.4861]
[1719753037115,0.57569338,3393.7,3393.2,2.4861]
[1719753037316,0.36150315,3393.7,3393.2,2.4861]
[1719753037517,0.57569198,3393.7,3393.2,2.4861]
[1719753038218,0.36150315,3393.7,3393.2,2.4861]
[1719753040324,0.36150315,3393.7,3393.2,2.73471]
[1719753044818,7.83,3393.8,3393.2,2.73471]
[1719753045026,7.83,3393.8,3393.2,2.4861]
[1719753048125,7.83,3393.8,3393.3,0.05893456]
[1719753048927,7.83,3393.8,3393.2,2.4861]
[1719753049827,3.0,3393.8,3393.2,2.4861]
[1719753050015,4.83,3394.1,3393.2,2.4861]
[1719753050016,3.0,3393.7,3393.2,2.4861]
[1719753050224,3.0,3394.0,3393.3,0.24861]
[1719753050392,0.21419642,3393.9,3393.3,0.24861]
[1719753051491,3.0,3394.0,3393.4,2.3104]
[1719753052333,3.0,3394.0,3392.4,3.05893298]
[1719753052334,4.83,3394.1,3393.5,0.058933]
[1719753052647,4.83,3394.1,3392.5,2.3104]
[1719753052794,4.83,3394.1,3392.6,2.8604]
[1719753053130,4.83,3394.1,3392.8,2.3104]
[1719753053342,4.83,3394.1,3393.0,2.3104]
[1719753053650,4.83,3394.1,3393.2,2.3104]
[1719753054144,4.83,3394.1,3393.4,2.3104]
[1719753054309,4.83,3394.1,3393.5,0.55]
[1719753054493,4.83,3394.1,3393.6,2.3104]
[1719753054697,4.83,3394.1,3393.8,2.3104]
[1719753054935,4.83,3394.6,3393.8,2.3104]
[1719753056807,2.2642,3394.5,3393.4,2.3104]
[1719753059747,2.2642,3394.5,3393.5,0.23104]
[1719753060029,2.2642,3394.5,3392.8,2.3104]
[1719753060230,2.2642,3394.5,3393.0,2.3104]
[1719753060433,2.2642,3394.5,3393.2,2.3104]
[1719753060648,2.2642,3394.5,3393.3,2.82748]
[1719753060850,2.2642,3394.5,3393.3,2.3104]
[1719753063252,4.83,3394.6,3393.3,2.3104]
[1719753063452,4.83,3394.6,3393.4,2.8604]
[1719753071026,2.3672,3394.5,3393.4,2.8604]
[1719753071273,2.3672,3394.5,3393.4,2.3104]
[1719753071447,2.3672,3394.4,3393.4,2.3104]
[1719753071903,2.72870315,3394.4,3393.4,2.3104]
[1719753078294,2.72870315,3394.4,3392.2,1.180715]
[1719753078295,2.3672,3394.2,3393.1,2.2591]
[1719753078581,2.3672,3394.2,3393.2,0.22591]
[1719753078791,2.3672,3394.2,3393.1,2.2591]
[1719753083368,2.3672,3394.2,3392.4,2.2591]
[1719753083570,2.3672,3394.0,3392.6,2.2591]
[1719753083784,2.3672,3394.0,3392.6,5.2591]
[1719753084518,2.3672,3394.0,3392.6,2.2591]
[1719753084726,7.1972,3394.0,3392.6,2.2591]
[1719753085065,2.3672,3393.9,3392.7,0.27063548]
[1719753089700,2.3672,3393.9,3392.8,2.4631]
[1719753099367,2.3672,3393.9,3392.7,0.27063548]
[1719753109518,4.83,3394.0,3392.7,0.27063548]
[1719753109519,2.4288,3393.8,3392.7,0.27063548]
[1719753113548,2.4288,3393.6,3392.7,0.27063548]
[1719753117557,0.21416881,3393.5,3392.4,0.44725479]
[1719753117753,2.4288,3393.5,3392.5,0.55]
[1719753118058,2.4288,3393.5,3392.6,0.39972548]
[1719753120721,2.4288,3393.3,3392.6,0.39972548]
[1719753120925,2.4288,3393.3,3392.4,0.44725479]
[1719753126037,2.4288,3393.3,3392.5,2.4059]
[1719753126273,2.4288,3393.3,3392.5,5.4059]
[1719753128461,2.4288,3393.3,3392.5,3.0]
[1719753128627,2.4288,3393.3,3392.4,3.44725479]
[1719753128825,2.4288,3393.3,3392.5,0.40338818]
[1719753138291,4.83,3393.7,3392.4,0.44725479]
[1719753138292,0.21413955,3393.2,3392.4,0.44725479]
[1719753138557,2.3991,3393.1,3391.9,3.0]
[1719753139109,2.3991,3393.1,3391.7,3.62023728]
[1719753139267,2.3991,3393.1,3391.8,3.27091835]
[1719753139454,2.3991,3393.1,3391.9,4.02656946]
[1719753139649,2.3991,3393.1,3391.8,3.7044947]
[1719753139876,2.3991,3393.1,3391.9,1.02656828]
[1719753140211,2.3991,3393.1,3392.0,0.65321733]
[1719753143100,2.3991,3392.9,3392.0,0.65321733]
[1719753143314,2.3991,3392.9,3391.8,0.7044947]
[1719753143521,2.3991,3392.9,3391.6,3.08845382]
[1719753143812,2.3991,3392.9,3391.6,0.08845382]
[1719753145117,2.3991,3392.7,3391.6,0.08845382]
[1719753149482,2.3991,3392.7,3391.7,0.2959]
[1719753164419,2.3991,3392.7,3391.8,0.058958]
[1719753165633,2.3991,3392.7,3391.7,2.7501]
[1719753168402,2.3991,3392.7,3391.7,0.2959]
[1719753188392,0.2140644,3392.6,3391.7,0.2959]
[1719753188551,2.3991,3392.7,3391.8,0.26870538]
[1719753188758,0.21406441,3392.6,3391.8,0.26870538]
[1719753189066,2.2502,3392.5,3391.8,0.26870538]
[1719753209780,2.2502,3392.5,3391.8,2.66140538]
[1719753210057,2.2502,3392.5,3391.8,2.3927]
[1719753210834,7.1768,3392.8,3391.8,2.3927]
[1719753211082,0.21401561,3392.7,3391.8,2.3927]
[1719753211288,0.21401561,3392.7,3391.9,0.27770538]
[1719753211582,0.21401394,3392.7,3391.9,0.27770538]
[1719753211771,0.21401394,3392.7,3392.1,2.3927]
[1719753211985,0.21401394,3392.7,3392.2,0.05895143]
[1719753212295,4.83,3392.8,3392.2,0.05895143]
[1719753212452,4.83,3392.8,3392.3,0.24516514]
[1719753213766,2.3468,3393.0,3392.3,0.24516514]
[1719753213988,0.21403953,3392.9,3392.3,0.24516514]
[1719753214889,0.21403586,3392.9,3392.3,0.24516514]
[1719753215406,0.21403586,3392.9,3392.1,2.3927]
[1719753217853,2.3468,3393.0,3392.1,2.3927]
[1719753218174,0.21406586,3392.9,3392.1,2.3927]
[1719753219291,0.21406374,3392.9,3392.1,2.3927]
[1719753219975,0.21406495,3392.9,3392.1,2.3927]
[1719753220172,0.21406495,3392.9,3392.2,0.23927]
[1719753220904,7.1768,3393.2,3392.4,2.3927]
[1719753221100,0.2140836,3393.1,3392.5,0.05894816]
[1719753221258,4.83,3393.2,3392.7,2.3927]
[1719753239542,2.3666,3393.1,3392.1,2.2743]
[1719753239747,2.3666,3393.1,3392.2,0.55]
[1719753240006,2.3666,3393.1,3392.3,0.58243]
[1719753240143,2.3666,3393.1,3392.4,0.55]
[1719753240464,2.3666,3393.1,3392.4,2.8243]
[1719753241494,2.3666,3393.1,3392.4,2.2743]
[1719753241693,2.3666,3393.1,3392.3,0.58243]
[1719753241856,2.3666,3393.1,3392.4,0.285673]
[1719753249654,2.3666,3393.1,3392.3,0.58243]
[1719753249973,2.3666,3393.1,3392.1,3.0]
[1719753250175,2.3666,3393.1,3391.9,3.0]
[1719753250360,2.3666,3393.1,3391.8,2.4729]
[1719753251074,2.3666,3393.1,3391.9,0.55]
[1719753251304,2.3666,3393.1,3392.0,0.60229]
[1719753256226,0.21415454,3393.0,3391.6,2.35185382]
[1719753256425,4.83,3393.2,3391.7,0.55]
[1719753256426,2.4044,3392.9,3391.7,0.55]
[1719753256638,2.4044,3393.0,3391.7,0.84018538]
[1719753259760,2.4044,3393.0,3391.8,2.2634]
[1719753260761,2.4044,3393.0,3392.0,2.2634]
[1719753283145,0.21411315,3392.9,3392.0,2.2634]
[1719753283846,2.4044,3393.0,3392.0,2.2634]
[1719753284308,0.21412024,3392.9,3392.0,2.2634]
[1719753284953,0.21411696,3392.9,3392.0,2.2634]
[1719753287343,0.21411696,3392.9,3392.1,0.22634]
[1719753288113,2.4044,3393.0,3392.1,0.22634]
[1719753288312,0.21411869,3392.9,3392.1,0.22634]
[1719753288549,2.4044,3393.0,3392.1,0.22634]
[1719753288750,0.21412052,3392.9,3392.1,0.22634]
[1719753291135,0.21412022,3392.9,3392.1,0.22634]
[1719753291451,0.21412017,3392.9,3392.1,0.22634]